bitfinex/quotes_ETHUSD_20250620
["timestamp","ask_amount","ask_price","bid_price","bid_amount"]
[1750463022851,13.00665657,2407.2,2407.1,4.15437663]
[1750463023046,13.00706966,2407.2,2407.1,4.15437663]
[1750463023211,12.61776376,2407.2,2407.1,4.15437663]
[1750463023410,13.00708926,2407.2,2407.1,4.15437663]
[1750463024453,13.00708847,2407.2,2407.1,4.15437663]
[1750463025556,13.00713664,2407.2,2407.1,4.15437663]
[1750463025856,13.0071356,2407.2,2407.1,4.15437663]
[1750463026053,13.00715221,2407.2,2407.1,4.15437663]
[1750463026356,13.00718389,2407.2,2407.1,4.15437663]
[1750463026739,12.95068389,2407.2,2407.1,4.15437663]
[1750463027057,4.0245879,2407.2,2407.1,4.21367663]
[1750463027554,4.02463318,2407.2,2407.1,4.21367663]
[1750463028037,4.02463171,2407.2,2407.1,4.21367663]
[1750463028355,4.02467763,2407.2,2407.1,4.21367663]
[1750463028861,4.02468374,2407.2,2407.1,4.21367663]
[1750463030058,4.02457913,2407.2,2407.1,4.21367663]
[1750463030226,4.02457913,2407.2,2407.1,5.83599653]
[1750463030428,4.02458776,2407.2,2407.1,4.92237663]
[1750463030635,4.02458776,2407.2,2407.1,4.15437663]
[1750463030636,4.02460246,2407.2,2407.1,4.15437663]
[1750463031058,4.02459824,2407.2,2407.1,4.15437663]
[1750463031443,4.02459824,2407.2,2407.1,4.92237663]
[1750463031691,3.24586198,2407.2,2407.1,4.92237663]
[1750463031865,4.0246108,2407.2,2407.1,4.92237663]
[1750463032057,4.02461128,2407.2,2407.1,4.92237663]
[1750463032662,4.02461128,2407.2,2407.1,4.15437663]
[1750463032975,4.02436286,2407.2,2407.1,4.15437663]
[1750463033182,4.02436311,2407.2,2407.1,4.15437663]
[1750463033480,3.63519305,2407.2,2407.1,4.15437663]
[1750463033683,4.02452412,2407.2,2407.1,4.15437663]
[1750463033859,4.02452378,2407.2,2407.1,4.15437663]
[1750463034059,4.02452372,2407.2,2407.1,4.15437663]
[1750463034584,4.02452066,2407.2,2407.1,4.15437663]
[1750463035747,4.0244286,2407.2,2407.1,4.15437663]
[1750463036083,4.02434425,2407.2,2407.1,4.15437663]
[1750463036583,4.02432576,2407.2,2407.1,4.15437663]
[1750463037176,4.02432684,2407.2,2407.1,4.15437663]
[1750463037546,4.0242406,2407.2,2407.1,4.15437663]
[1750463037990,4.02424895,2407.2,2407.1,4.15437663]
[1750463038372,4.02424826,2407.2,2407.1,4.21367663]
[1750463038569,4.02421985,2407.2,2407.1,4.21367663]
[1750463038892,4.02421996,2407.2,2407.1,4.21367663]
[1750463039388,4.02418086,2407.2,2407.1,4.21367663]
[1750463039564,4.02416843,2407.2,2407.1,5.92069653]
[1750463039966,3.63499907,2407.2,2407.1,5.92069653]
[1750463040294,3.63496759,2407.2,2407.1,5.92069653]
[1750463040585,3.63483747,2407.2,2407.1,5.92069653]
[1750463040885,3.63483747,2407.2,2407.1,5.86139653]
[1750463041087,3.63483747,2407.2,2407.1,4.94367663]
[1750463041386,4.02384154,2407.2,2407.1,4.15437663]
[1750463041601,4.02387231,2407.2,2407.1,4.15437663]
[1750463041752,3.63486605,2407.2,2407.1,4.15437663]
[1750463041949,4.023895,2407.2,2407.1,4.15437663]
[1750463042699,4.914195,2407.2,2407.1,4.15437663]
[1750463042902,6.14938085,2407.2,2407.1,4.15437663]
[1750463043206,6.14940645,2407.2,2407.1,4.15437663]
[1750463043354,6.14947104,2407.2,2407.1,4.15437663]
[1750463043555,6.14946317,2407.2,2407.1,4.15437663]
[1750463043795,6.14945283,2407.2,2407.1,4.15437663]
[1750463044164,5.76038097,2407.2,2407.1,4.15437663]
[1750463044492,6.14944228,2407.2,2407.1,4.15437663]
[1750463045281,4.96622996,2407.2,2407.1,4.15437663]
[1750463045455,4.52522668,2407.2,2407.1,4.15437663]
[1750463045787,4.08616612,2407.2,2407.1,4.15437663]
[1750463045985,4.02396445,2407.2,2407.1,4.15437663]
[1750463046558,3.63491405,2407.2,2407.1,4.15437663]
[1750463046789,4.08616552,2407.2,2407.1,4.15437663]
[1750463047085,3.69711345,2407.2,2407.1,4.15437663]
[1750463047292,4.08616466,2407.2,2407.1,4.15437663]
[1750463047499,4.08618321,2407.2,2407.1,4.15437663]
[1750463048392,3.30806198,2407.2,2407.1,4.15437663]
[1750463048581,4.08618594,2407.2,2407.1,4.15437663]
[1750463048960,4.08618623,2407.2,2407.1,4.15437663]
[1750463049160,3.30806198,2407.2,2407.1,4.15437663]
[1750463049458,4.086238,2407.2,2407.1,4.15437663]
[1750463050193,4.08624164,2407.2,2407.1,4.15437663]
[1750463050385,4.02404164,2407.2,2407.1,4.15437663]
[1750463050978,3.63495246,2407.2,2407.1,4.15437663]
[1750463051185,4.02402851,2407.2,2407.1,4.15437663]
[1750463051383,3.24586198,2407.2,2407.1,4.15437663]
[1750463051586,4.02406994,2407.2,2407.1,4.15437663]
[1750463052592,3.63496811,2407.2,2407.1,4.15437663]
[1750463052793,4.02407189,2407.2,2407.1,4.15437663]
[1750463052962,4.02407166,2407.2,2407.1,4.15437663]
[1750463053496,4.02410599,2407.2,2407.1,4.15437663]
[1750463053664,5.18672981,2407.2,2407.1,4.15437663]
[1750463054098,5.18675976,2407.2,2407.1,4.15437663]
[1750463054291,5.18675994,2407.2,2407.1,4.15437663]
[1750463054763,5.18676726,2407.2,2407.1,4.15437663]
[1750463055461,5.18676647,2407.2,2407.1,4.15437663]
[1750463056300,5.18677438,2407.2,2407.1,4.15437663]
[1750463056500,5.18679019,2407.2,2407.1,4.15437663]
[1750463057193,5.18682086,2407.2,2407.1,4.15437663]
[1750463058297,5.18682098,2407.2,2407.1,4.15437663]
[1750463059273,5.18680309,2407.2,2407.1,4.15437663]
[1750463059482,5.186819,2407.2,2407.1,4.15437663]
[1750463059883,5.18681839,2407.2,2407.1,4.15437663]
[1750463060083,5.1868142,2407.2,2407.1,4.15437663]
[1750463062081,5.18681488,2407.2,2407.1,4.15437663]
[1750463063003,5.18682746,2407.2,2407.1,4.15437663]
[1750463063906,5.1868312,2407.2,2407.1,4.15437663]
[1750463065104,5.1246312,2407.2,2407.1,4.15437663]
[1750463065307,20.94940738,2407.2,2407.1,4.15437663]
[1750463065709,20.94935659,2407.2,2407.1,4.15437663]
[1750463065896,20.94930942,2407.2,2407.1,4.15437663]
[1750463067513,20.88707561,2407.2,2407.1,4.15437663]
[1750463068013,20.88702034,2407.2,2407.1,4.15437663]
[1750463068785,23.30000237,2407.2,2407.1,4.15437663]
[1750463068989,23.30000014,2407.2,2407.1,4.15437663]
[1750463069717,23.30000842,2407.2,2407.1,4.15437663]
[1750463070415,23.30000115,2407.2,2407.1,4.15437663]
[1750463071321,22.52184401,2407.2,2407.1,4.15437663]
[1750463071517,20.88745276,2407.2,2407.1,4.15437663]
[1750463071697,20.88745197,2407.2,2407.1,4.15437663]
[1750463072716,20.88744523,2407.2,2407.1,4.15437663]
[1750463073018,20.88741392,2407.2,2407.1,4.15437663]
[1750463074423,20.88742668,2407.2,2407.1,4.15437663]
[1750463074724,20.88742671,2407.2,2407.1,4.15437663]
[1750463075034,20.88742674,2407.2,2407.1,4.15437663]
[1750463075322,20.88739665,2407.2,2407.1,4.15437663]
[1750463076089,20.88739575,2407.2,2407.1,4.15437663]
[1750463076289,20.88739544,2407.2,2407.1,4.15437663]
[1750463076746,20.49812871,2407.2,2407.1,4.15437663]
[1750463076926,20.10886198,2407.2,2407.1,4.15437663]
[1750463077391,20.55961528,2407.2,2407.1,4.15437663]
[1750463077587,4.02436684,2407.2,2407.1,4.97607663]
[1750463077796,4.02433849,2407.2,2407.1,5.94913922]
[1750463078502,3.24586198,2407.2,2407.1,5.94913922]
[1750463079155,3.24586198,2407.2,2407.1,4.15437663]
[1750463079430,4.02427414,2407.2,2407.1,4.15437663]
[1750463079638,3.24586198,2407.2,2407.1,4.15437663]
[1750463079803,3.63489165,2407.2,2407.1,4.15437663]
[1750463079991,4.02392123,2407.2,2407.1,4.15437663]
[1750463080242,4.0239209,2407.2,2407.1,4.15437663]
[1750463080720,4.02392165,2407.2,2407.1,4.15437663]
[1750463081120,4.02392231,2407.2,2407.1,4.15437663]
[1750463081433,3.63489222,2407.2,2407.1,4.15437663]
[1750463081750,3.24586198,2407.2,2407.1,4.15437663]
[1750463083339,3.24586198,2407.2,2407.1,5.89853922]
[1750463086838,3.24586198,2407.2,2407.1,5.83853922]
[1750463087039,3.63454048,2407.2,2407.1,4.15437663]
[1750463087209,3.24586198,2407.2,2407.1,4.15437663]
[1750463087412,3.6345305,2407.2,2407.1,4.15437663]
[1750463087718,3.63454591,2407.2,2407.1,4.15437663]
[1750463088332,3.63455061,2407.2,2407.1,4.15437663]
[1750463088933,3.63455104,2407.2,2407.1,4.15437663]
[1750463089243,3.63455099,2407.2,2407.1,4.15437663]
[1750463089734,3.24586198,2407.2,2407.1,4.15437663]
[1750463089935,3.63452551,2407.2,2407.1,4.15437663]
[1750463090244,3.63452551,2407.2,2407.1,5.06357922]
[1750463090421,3.63452328,2407.2,2407.1,4.15437663]
[1750463090932,3.24586198,2407.2,2407.1,4.15437663]
[1750463091313,3.63452245,2407.2,2407.1,4.15437663]
[1750463092455,3.63450547,2407.2,2407.1,4.15437663]
[1750463093360,3.69600547,2407.2,2407.1,4.15437663]
[1750463093859,4.02319037,2407.2,2407.1,4.15437663]
[1750463094065,4.0232318,2407.2,2407.1,4.15437663]
[1750463094241,3.63454689,2407.2,2407.1,4.15437663]
[1750463094444,4.0232311,2407.2,2407.1,4.15437663]
[1750463094626,3.63454619,2407.2,2407.1,4.15437663]
[1750463094833,3.24586198,2407.2,2407.1,4.15437663]
[1750463095226,3.24586198,2407.2,2407.1,20.40950229]
[1750463095430,3.24586198,2407.2,2407.1,20.3889875]
[1750463097572,3.24586198,2407.2,2407.1,22.1909875]
[1750463098933,3.24586198,2407.2,2407.1,13.5309875]
[1750463099135,3.24586198,2407.2,2407.1,22.1899875]
[1750463100585,3.24586198,2407.2,2407.1,13.5309875]
[1750463100876,3.24586198,2407.2,2407.1,22.1889875]
[1750463101963,3.24586198,2407.2,2407.1,13.5309875]
[1750463102159,3.24586198,2407.2,2407.1,5.86087922]
[1750463102476,3.24586198,2407.2,2407.1,13.60967663]
[1750463103335,3.24586198,2407.2,2407.1,21.82818491]
[1750463103640,3.24586198,2407.2,2407.1,21.27818491]
[1750463104476,3.24586198,2407.2,2407.1,21.21978491]
[1750463104645,3.24586198,2407.2,2407.1,21.27818491]
[1750463104943,3.24586198,2407.2,2407.1,23.82145832]
[1750463106972,3.24586198,2407.2,2407.1,16.15295004]
[1750463107346,3.24586198,2407.2,2407.1,4.15437663]
[1750463107570,3.24586198,2407.2,2407.1,11.00937663]
[1750463109173,3.24586198,2407.2,2407.1,4.15437663]
[1750463109478,3.24586198,2407.2,2407.1,11.00937663]
[1750463110481,3.24586198,2407.2,2407.1,4.15437663]
[1750463110991,3.24586198,2407.2,2407.1,11.00937663]
[1750463111158,3.30336198,2407.2,2407.1,11.00937663]
[1750463111340,3.24586198,2407.2,2407.1,11.00937663]
[1750463112875,3.24586198,2407.2,2407.1,4.15437663]
[1750463116382,3.30336198,2407.2,2407.1,4.15437663]
[1750463116994,3.24586198,2407.2,2407.1,4.15437663]
[1750463117694,3.24586198,2407.2,2407.1,5.67650922]
[1750463118594,3.24586198,2407.2,2407.1,4.15437663]
[1750463121581,3.24586198,2407.2,2407.1,4.98567663]
[1750463125606,3.24586198,2407.2,2407.1,4.15437663]
[1750463125958,3.24586198,2407.2,2407.1,11.00737663]
[1750463126821,3.24586198,2407.2,2407.1,18.61748491]
[1750463126999,3.24586198,2407.2,2407.1,22.02295832]
[1750463131304,3.24586198,2407.2,2407.1,32.57295832]
[1750463132640,3.24586198,2407.2,2407.1,34.37195832]
[1750463133306,0.2180253,2407.8,2407.7,12.69144964]
[1750463133501,0.2180253,2407.8,2407.7,31.34344964]
[1750463134032,0.2180253,2407.8,2407.7,41.31644964]
[1750463137832,0.2180253,2407.8,2407.7,40.76644964]
[1750463138033,0.2180253,2407.8,2407.7,41.31644964]
[1750463138337,0.2180253,2407.8,2407.7,43.85552305]
[1750463140712,0.2180253,2407.8,2407.7,16.98171477]
[1750463141036,0.2180253,2407.8,2407.7,33.24082305]
[1750463141743,1.0685253,2407.8,2407.7,4.15334136]
[1750463144247,0.2180253,2407.8,2407.7,4.15334136]
[1750463144417,0.2785253,2407.8,2407.7,4.15334136]
[1750463144618,0.2785253,2407.8,2407.7,4.17382056]
[1750463144856,0.2785253,2407.8,2407.7,4.15334136]
[1750463146618,0.2785253,2407.8,2407.7,11.00334136]
[1750463148157,0.2180253,2407.8,2407.7,11.00334136]
[1750463148724,0.2785253,2407.8,2407.7,11.00334136]
[1750463151325,0.2180253,2407.8,2407.7,13.35102429]
[1750463151863,0.2180253,2407.8,2407.7,15.14902429]
[1750463153248,0.2180253,2407.8,2407.7,25.14902429]
[1750463155871,0.2180253,2407.8,2407.7,25.08732429]
[1750463156652,0.2180253,2407.8,2407.7,25.14902429]
[1750463157842,0.2180253,2407.8,2407.7,15.08732429]
[1750463158661,0.2180253,2407.8,2407.7,14.31602429]
[1750463159876,0.2180253,2407.8,2407.7,23.24643257]
[1750463160079,0.2180253,2407.8,2407.7,23.30813257]
[1750463160575,0.2180253,2407.8,2407.7,6.98932429]
[1750463160737,0.2180253,2407.8,2407.7,15.08632429]
[1750463160937,0.2180253,2407.8,2407.7,22.75813257]
[1750463161135,0.2180253,2407.8,2407.7,23.30813257]
[1750463162081,0.2180253,2407.8,2407.7,13.82913257]
[1750463162242,0.2180253,2407.8,2407.7,21.44333257]
[1750463162437,0.2180253,2407.8,2407.7,21.50333257]
[1750463163085,0.2180253,2407.8,2407.7,21.44333257]
[1750463163269,0.2751253,2407.8,2407.7,5.66902429]
[1750463163583,0.2751253,2407.8,2407.7,12.52402429]
[1750463163767,0.2751253,2407.8,2407.7,4.15334136]
[1750463164075,0.2751253,2407.8,2407.7,11.01034136]
[1750463164885,0.2751253,2407.8,2407.7,4.15334136]
[1750463165047,1.0952253,2407.8,2407.7,4.15334136]
[1750463169794,1.48355597,2407.8,2407.7,4.15334136]
[1750463170291,1.0952253,2407.8,2407.7,4.15334136]
[1750463170593,1.4835572,2407.8,2407.7,4.15334136]
[1750463171000,1.48363989,2407.8,2407.7,4.15334136]
[1750463171500,1.4836435,2407.8,2407.7,4.15334136]
[1750463173085,1.0952253,2407.8,2407.7,4.15334136]
[1750463175296,1.4835956,2407.8,2407.7,4.15334136]
[1750463175705,1.4835956,2407.8,2407.6,4.15349177]
[1750463175706,0.8412,2407.7,2407.6,4.15349177]
[1750463175909,1.66520912,2407.7,2407.6,4.15349177]
[1750463176080,2.22617309,2407.7,2407.6,4.15349177]
[1750463176279,2.6145553,2407.7,2407.6,4.15349177]
[1750463176503,2.61449664,2407.7,2407.6,4.15349177]
[1750463176668,2.61447109,2407.7,2407.6,4.15349177]
[1750463177085,0.8821,2407.6,2407.5,4.15352635]
[1750463177281,2.55776041,2407.6,2407.5,4.15352635]
[1750463177505,2.94151433,2407.6,2407.5,4.15352635]
[1750463177672,2.94151367,2407.6,2407.5,4.15352635]
[1750463178164,2.94151245,2407.6,2407.5,4.15352635]
[1750463178378,1.65417281,2407.6,2407.5,4.15352635]
[1750463178580,1.65872394,2407.6,2407.5,4.15352635]
[1750463179071,1.27044192,2407.6,2407.5,4.15352635]
[1750463179689,1.27012858,2407.6,2407.5,4.15352635]
[1750463179891,1.27012894,2407.6,2407.5,4.15352635]
[1750463180604,1.27005065,2407.6,2407.5,4.15352635]
[1750463181406,1.27005095,2407.6,2407.5,4.15352635]
[1750463181923,0.8821,2407.6,2407.5,4.15352635]
[1750463182105,0.38780714,2407.6,2407.5,4.15352635]
[1750463182281,1.0324253,2407.8,2407.7,4.15334136]
[1750463182483,0.2180253,2407.8,2407.7,4.15334136]
[1750463182797,0.2751253,2407.8,2407.7,4.15334136]
[1750463185114,0.0571,2407.7,2407.6,4.15339513]
[1750463185278,0.8144,2407.7,2407.6,4.15339513]
[1750463185889,0.7573,2407.7,2407.6,4.15339513]
[1750463186093,0.2180253,2407.8,2407.7,4.15334136]
[1750463186495,0.60593338,2407.8,2407.7,4.15334136]
[1750463186692,0.2180253,2407.8,2407.7,4.15334136]
[1750463186882,0.2751253,2407.8,2407.7,4.15334136]
[1750463187081,0.66321063,2407.8,2407.7,4.15334136]
[1750463187282,0.60611063,2407.8,2407.7,4.15334136]
[1750463187783,0.66321063,2407.8,2407.7,4.15334136]
[1750463188806,0.6632785,2407.8,2407.7,4.15334136]
[1750463190013,0.2751253,2407.8,2407.7,4.15334136]
[1750463190316,0.61342627,2407.8,2407.7,4.15334136]
[1750463190820,0.66534265,2407.8,2407.7,4.15334136]
[1750463191039,1.05371923,2407.8,2407.7,4.15334136]
[1750463191240,0.66534265,2407.8,2407.7,4.15334136]
[1750463191735,0.66541546,2407.8,2407.7,4.15334136]
[1750463192116,1.05379533,2407.8,2407.7,4.15334136]
[1750463193498,1.00274466,2407.8,2407.7,4.15334136]
[1750463193922,1.00273476,2407.8,2407.7,4.15334136]
[1750463194138,1.00273145,2407.8,2407.7,4.15334136]
[1750463194341,0.61392672,2407.8,2407.7,4.15334136]
[1750463194542,0.2251253,2407.8,2407.7,4.15334136]
[1750463194824,1.00273269,2407.8,2407.7,4.15334136]
[1750463195202,0.94563269,2407.8,2407.7,4.15334136]
[1750463195406,0.9456713,2407.8,2407.7,4.98401501]
[1750463195809,0.55686754,2407.8,2407.7,4.98401501]
[1750463196102,0.55685513,2407.8,2407.7,4.98401501]
[1750463196432,0.1680253,2407.8,2407.7,5.0609004]
[1750463197230,0.1680253,2407.8,2407.7,12.65052329]
[1750463199334,0.1680253,2407.8,2407.7,15.25242329]
[1750463201536,0.1680253,2407.8,2407.7,15.80242329]
[1750463201837,0.1680253,2407.8,2407.7,22.65242329]
[1750463203015,0.1680253,2407.8,2407.7,14.00142329]
[1750463203235,0.1680253,2407.8,2407.7,15.04131501]
[1750463207204,0.1680253,2407.8,2407.7,14.43491501]
[1750463207402,0.1680253,2407.8,2407.7,14.49131501]
[1750463207635,0.1680253,2407.8,2407.7,13.63301501]
[1750463208407,0.2273253,2407.8,2407.7,13.63301501]
[1750463208730,0.2273253,2407.8,2407.7,12.80234136]
[1750463209562,0.2273253,2407.8,2407.7,5.95434136]
[1750463211344,0.2273253,2407.8,2407.7,4.15334136]
[1750463213734,1.07033938,2407.8,2407.7,4.15334136]
[1750463213934,1.45836425,2407.8,2407.7,4.15334136]
[1750463214315,2.60420068,2407.8,2407.7,4.15334136]
[1750463214516,2.604215,2407.8,2407.7,4.15334136]
[1750463214733,0.7911,2407.7,2407.6,4.15339208]
[1750463215014,11.62643266,2407.7,2407.6,4.15339208]
[1750463215316,11.23843737,2407.7,2407.6,4.15339208]
[1750463215515,13.64272883,2407.7,2407.6,4.15339208]
[1750463215819,13.64272882,2407.7,2407.6,4.15339208]
[1750463216420,0.7911,2407.6,2407.4,4.15377325]
[1750463216654,1.29037155,2407.5,2407.4,4.15377325]
[1750463216837,1.29037155,2407.5,2407.2,4.15406706]
[1750463216838,0.8504,2407.4,2407.3,4.15394174]
[1750463217151,1.58598908,2407.4,2407.3,4.15394174]
[1750463217509,1.58577699,2407.4,2407.3,4.15394174]
[1750463217917,1.58577699,2407.4,2406.6,0.0621]
[1750463217918,0.0593,2407.2,2406.6,0.0621]
[1750463218116,11.23823306,2407.1,2407.0,4.15438174]
[1750463218316,1.23823306,2407.1,2407.0,4.15438174]
[1750463219230,1.23821964,2407.1,2407.0,4.15438174]
[1750463219621,1.23821757,2407.1,2407.0,4.15438174]
[1750463219820,0.8504,2407.1,2407.0,4.15438174]
[1750463221161,0.05193294,2407.2,2407.1,4.15437663]
[1750463221361,0.9591253,2407.8,2407.5,4.15368639]
[1750463221545,1.0184253,2407.8,2407.5,4.15368639]
[1750463221752,0.9591253,2407.8,2407.5,4.15368639]
[1750463222065,0.058,2407.7,2407.6,4.15351387]
[1750463223625,1.0171253,2407.8,2407.7,4.15334136]
[1750463223861,0.1680253,2407.8,2407.7,4.15334136]
[1750463224165,0.2260253,2407.8,2407.7,4.15334136]
[1750463226263,0.1680253,2407.8,2407.7,4.15334136]
[1750463227970,0.2260253,2407.8,2407.7,4.15334136]
[1750463230476,7.95594518,2407.8,2407.7,4.15334136]
[1750463230678,9.89975348,2407.8,2407.7,4.15334136]
[1750463230887,9.8478336,2407.8,2407.7,4.15334136]
[1750463231088,9.84783318,2407.8,2407.7,4.15334136]
[1750463231386,9.46063065,2407.8,2407.7,4.15334136]
[1750463231901,9.84783161,2407.8,2407.7,4.15334136]
[1750463233180,9.84826912,2407.8,2407.7,4.15334136]
[1750463233489,10.23591037,2407.8,2407.7,4.15334136]
[1750463233862,9.84827195,2407.8,2407.7,4.15334136]
[1750463234288,12.03291322,2407.8,2407.7,4.15334136]
[1750463234598,12.03291657,2407.8,2407.7,4.15334136]
[1750463234786,12.03291611,2407.8,2407.7,4.15334136]
[1750463235292,10.08866826,2407.8,2407.7,4.15334136]
[1750463235471,0.55566826,2407.8,2407.7,4.15334136]
[1750463235670,0.1680253,2407.8,2407.7,4.15334136]
[1750463236287,0.55599501,2407.8,2407.7,4.15334136]
[1750463236471,0.55599511,2407.8,2407.7,4.15334136]
[1750463236961,0.55598223,2407.8,2407.7,4.15334136]
[1750463239894,0.1680253,2407.8,2407.7,4.15334136]
[1750463248777,0.1680253,2407.8,2407.7,5.83721303]
[1750463249106,0.1680253,2407.8,2407.7,13.44732131]
[1750463249308,0.1680253,2407.8,2407.7,13.42683516]
[1750463252901,0.1680253,2407.8,2407.7,5.81672688]
[1750463253076,0.1680253,2407.8,2407.7,5.83719806]
[1750463253782,0.1680253,2407.8,2407.7,4.98402688]
[1750463253986,0.1680253,2407.8,2407.7,4.15334136]
[1750463257140,0.1680253,2407.8,2407.7,4.21154136]
[1750463257541,0.1680253,2407.8,2407.7,4.23201923]
[1750463257912,0.1680253,2407.8,2407.7,11.08001923]
[1750463258125,0.1680253,2407.8,2407.7,21.03614378]
[1750463261795,0.1680253,2407.8,2407.7,13.3678355]
[1750463266538,0.1680253,2407.8,2407.7,13.4260355]
[1750463270581,0.1680253,2407.8,2407.7,13.3678355]
[1750463271454,0.2270253,2407.8,2407.7,11.00134136]
[1750463272368,0.2270253,2407.8,2407.7,4.15334136]
[1750463272572,1.0260253,2407.8,2407.7,4.15334136]
[1750463274209,0.2270253,2407.8,2407.7,4.15334136]
[1750463274351,0.1680253,2407.8,2407.7,5.66872688]
[1750463274554,0.1680253,2407.8,2407.7,6.51700511]
[1750463274863,0.1680253,2407.8,2407.7,6.57520511]
[1750463276968,0.1680253,2407.8,2407.7,14.18531339]
[1750463277175,0.1680253,2407.8,2407.7,14.16483516]
[1750463278493,0.1680253,2407.8,2407.7,6.55472688]
[1750463278695,0.1680253,2407.8,2407.7,6.49652688]
[1750463279559,0.1680253,2407.8,2407.7,12.51472688]
[1750463283407,10.6515845,2408.6,2408.4,4.15213419]
[1750463283609,2.02303551,2408.5,2408.4,4.15213419]
[1750463283815,2.05445833,2408.5,2408.4,4.15213419]
[1750463284112,2.05445832,2408.5,2408.4,4.15213419]
[1750463284311,2.05444261,2408.5,2408.4,4.15213419]
[1750463284500,2.05446608,2408.5,2408.4,4.15213419]
[1750463284825,2.05446616,2408.5,2408.4,4.15213419]
[1750463285186,2.023028,2408.5,2408.4,4.15213419]
[1750463285405,0.83996174,2408.5,2408.4,4.15213419]
[1750463285618,0.45083056,2408.5,2408.4,4.15213419]
[1750463285824,0.83996112,2408.5,2408.4,4.15213419]
[1750463286316,0.8399549,2408.5,2408.4,4.15213419]
[1750463286486,1.62774863,2408.5,2408.4,4.15213419]
[1750463286688,1.62775448,2408.5,2408.4,4.15213419]
[1750463287741,1.62777066,2408.5,2408.4,4.15213419]
[1750463287905,2.2774345,2408.5,2408.4,4.15213419]
[1750463288603,2.27743504,2408.5,2408.4,4.15213419]
[1750463288825,2.27743215,2408.5,2408.4,4.15213419]
[1750463289142,2.27743339,2408.5,2408.4,4.15213419]
[1750463289351,2.27743784,2408.5,2408.4,4.15213419]
[1750463290739,8.73330317,2408.5,2408.4,4.15213419]
[1750463291039,0.0617,2408.4,2408.3,4.15227682]
[1750463291231,2.08784191,2408.4,2408.3,4.15227682]
[1750463291407,2.08788894,2408.4,2408.3,4.15227682]
[1750463291807,2.08788891,2408.4,2408.3,4.15227682]
[1750463292546,1.62618838,2408.4,2408.3,4.15227682]
[1750463293177,0.761,2408.3,2408.1,4.15253409]
[1750463293380,0.77835784,2408.2,2408.1,4.15253409]
[1750463293596,0.77837031,2408.2,2408.1,4.15253409]
[1750463294339,0.77837139,2408.2,2408.1,4.15253409]
[1750463294888,0.77837477,2408.2,2408.1,4.15253409]
[1750463295850,0.77832654,2408.2,2408.1,4.15253409]
[1750463296144,1.75186569,2408.3,2408.2,4.15247902]
[1750463296344,2.53016037,2408.3,2408.2,4.15247902]
[1750463296799,2.53013595,2408.3,2408.2,4.15247902]
[1750463296976,2.14100082,2408.3,2408.2,4.15247902]
[1750463297181,2.53013595,2408.3,2408.2,4.15247902]
[1750463297506,2.53013873,2408.3,2408.2,4.15247902]
[1750463297789,2.1410036,2408.3,2408.2,4.15247902]
[1750463298088,7.99313791,2408.3,2408.2,4.15247902]
[1750463298286,8.38225975,2408.3,2408.2,4.15247902]
[1750463299792,8.38226285,2408.3,2408.2,4.15247902]
[1750463299998,7.604,2408.3,2408.2,4.15247902]
[1750463300167,8.38224928,2408.3,2408.2,4.15247902]
[1750463300577,8.38225616,2408.3,2408.2,4.15247902]
[1750463300788,8.38226622,2408.3,2408.2,4.15247902]
[1750463301504,8.38225968,2408.3,2408.2,4.15247902]
[1750463302000,7.99312673,2408.3,2408.2,4.15247902]
[1750463302203,8.38225423,2408.3,2408.2,4.15247902]
[1750463302500,8.38224981,2408.3,2408.2,4.15247902]
[1750463302701,7.62124981,2408.3,2408.2,4.15247902]
[1750463302907,7.62127724,2408.3,2408.2,4.15247902]
[1750463303910,7.6213134,2408.3,2408.2,4.15247902]
[1750463304804,7.62130418,2408.3,2408.2,4.15247902]
[1750463305429,0.77830418,2408.3,2408.2,4.15247902]
[1750463306383,0.77831106,2408.3,2408.2,5.1673531]
[1750463306586,0.77828141,2408.3,2408.2,5.12583033]
[1750463306796,0.77820194,2408.3,2408.2,5.12583033]
[1750463308112,0.38905516,2408.3,2408.2,5.12583033]
[1750463308310,0.77811011,2408.3,2408.2,5.12583033]
[1750463308509,0.77811011,2408.3,2408.2,5.06563033]
[1750463308710,3.04147622,2408.6,2408.5,4.1519618]
[1750463308900,3.81955744,2408.6,2408.5,4.1519618]
[1750463309086,3.8439979,2408.6,2408.5,4.1519618]
[1750463309689,3.45495943,2408.6,2408.5,4.1519618]
[1750463309888,3.84381652,2408.6,2408.5,4.1519618]
[1750463311585,3.84381652,2408.6,2408.5,4.98236894]
[1750463311784,3.45495943,2408.6,2408.5,5.84038523]
[1750463312004,3.4546007,2408.6,2408.5,5.84038523]
[1750463312516,3.4546007,2408.6,2408.5,5.79886894]
[1750463312917,3.06591882,2408.6,2408.5,5.79886894]
[1750463313221,3.45458992,2408.6,2408.5,5.79886894]
[1750463313520,3.45458954,2408.6,2408.5,5.79886894]
[1750463313688,3.45458953,2408.6,2408.5,5.79886894]
[1750463314225,3.45458953,2408.6,2408.5,5.84038362]
[1750463314407,3.06591882,2408.6,2408.5,5.84038362]
[1750463316802,3.06591882,2408.6,2408.5,20.2894919]
[1750463317004,0.0244426,2408.6,2408.5,20.79797722]
[1750463317199,0.0244426,2408.6,2408.5,22.59097722]
[1750463320554,0.0244426,2408.6,2408.5,21.98077722]
[1750463320733,0.0244426,2408.6,2408.5,12.57666894]
[1750463321257,0.0244426,2408.6,2408.5,12.63526894]
[1750463321415,0.0244426,2408.6,2408.5,11.82036894]
[1750463321611,0.0244426,2408.6,2408.5,12.65916894]
[1750463323722,0.0244426,2408.6,2408.5,5.76256894]
[1750463324059,0.0244426,2408.6,2408.5,4.1519618]
[1750463324360,0.0835426,2408.6,2408.5,4.1519618]
[1750463326481,0.47109323,2408.6,2408.5,4.1519618]
[1750463326646,0.8454,2408.5,2408.4,4.15199231]
[1750463326975,0.8454,2408.5,2407.6,4.21195058]
[1750463326976,0.8454,2408.3,2408.2,4.15238285]
[1750463327134,1.23299632,2408.3,2408.2,4.15238285]
[1750463327574,1.53804021,2408.3,2408.2,4.15238285]
[1750463327769,1.47905935,2408.3,2407.5,0.7647]
[1750463327973,0.0591,2408.1,2407.6,4.15351387]
[1750463328273,0.0591,2408.1,2408.0,4.15282392]
[1750463328274,0.8107426,2408.1,2408.0,4.15282392]
[1750463328472,1.25758855,2408.1,2407.9,4.15293094]
[1750463328643,0.8454,2407.9,2407.8,4.15306784]
[1750463328848,1.23317229,2407.9,2407.8,4.15306784]
[1750463329237,1.23317415,2407.9,2407.8,4.15306784]
[1750463329840,0.8454,2407.9,2407.8,4.15306784]
[1750463330375,0.0244426,2408.1,2407.8,4.15306784]
[1750463330536,0.0244426,2408.1,2408.0,4.15282392]
[1750463330537,7.7068426,2408.1,2408.0,4.15282392]
[1750463330881,9.07480573,2408.1,2408.0,4.15282392]
[1750463331173,1.19821708,2408.1,2408.0,4.15282392]
[1750463331371,0.41191708,2408.1,2408.0,4.15282392]
[1750463331798,0.41188627,2408.1,2408.0,4.15282392]
[1750463332281,0.41183679,2408.1,2408.0,4.15282392]
[1750463333881,0.0244426,2408.1,2408.0,4.15282392]
[1750463334384,0.41179529,2408.1,2408.0,4.15282392]
[1750463334592,0.41179338,2408.1,2408.0,4.15282392]
[1750463335584,0.47089929,2408.1,2408.0,4.15282392]